bitfinex/quotes_BTCUSD_20251221
["timestamp","ask_amount","ask_price","bid_price","bid_amount"]
[1766294282264,0.23796,88216.0,88205.0,0.11516]
[1766294287009,0.23796,88216.0,88205.0,0.12649722]
[1766294287969,0.23796,88216.0,88206.0,0.01133709]
[1766294288185,0.23796,88216.0,88205.0,0.12649722]
[1766294289881,0.23796,88216.0,88206.0,0.01133709]
[1766294290278,0.23796,88216.0,88205.0,0.12649722]
[1766294293221,0.23796,88216.0,88206.0,0.01133709]
[1766294293444,0.23796,88216.0,88205.0,0.11516]
[1766294294327,0.23796,88216.0,88205.0,0.12649722]
[1766294295274,0.23796,88216.0,88206.0,0.01133709]
[1766294295917,0.23796,88216.0,88205.0,0.12649722]
[1766294296117,0.23796,88216.0,88206.0,0.01133709]
[1766294296327,0.23796,88216.0,88205.0,0.12649722]
[1766294299575,0.23796,88216.0,88206.0,0.01133709]
[1766294299790,0.12154,88216.0,88206.0,0.01133709]
[1766294299964,0.12154,88216.0,88208.0,0.01133684]
[1766294300584,0.12154,88216.0,88207.0,0.01133696]
[1766294301161,0.12154,88216.0,88206.0,0.01133709]
[1766294301382,0.12154,88216.0,88207.0,0.01133696]
[1766294302130,0.12154,88216.0,88206.0,0.24713709]
[1766294302665,0.12154,88216.0,88207.0,0.01133696]
[1766294304229,0.12154,88216.0,88206.0,0.24713709]
[1766294304435,0.12154,88216.0,88207.0,0.01133696]
[1766294304584,0.12154,88216.0,88206.0,0.2358]
[1766294305041,0.12154,88216.0,88207.0,0.01133696]
[1766294305254,0.12154,88216.0,88206.0,0.2358]
[1766294305416,0.12154,88216.0,88206.0,0.24713709]
[1766294305832,0.12154,88216.0,88207.0,0.01133696]
[1766294306252,0.12154,88216.0,88206.0,0.24713709]
[1766294310368,0.12154,88216.0,88206.0,0.30382245]
[1766294310588,0.12154,88216.0,88208.0,0.01133684]
[1766294311020,0.12154,88216.0,88209.0,0.01133671]
[1766294311272,0.12154,88216.0,88208.0,0.01133684]
[1766294312005,0.12154,88216.0,88209.0,0.01133671]
[1766294312239,0.12154,88216.0,88208.0,0.01133684]
[1766294312959,0.12154,88216.0,88209.0,0.01133671]
[1766294313440,0.00568,88216.0,88209.0,0.01133671]
[1766294316635,0.00568,88216.0,88208.0,0.01133684]
[1766294316837,0.00568,88216.0,88207.0,0.01133696]
[1766294317038,0.00568,88216.0,88208.0,0.01133684]
[1766294317683,0.00568,88216.0,88207.0,0.01133696]
[1766294317836,0.00568,88216.0,88206.0,0.24713709]
[1766294318020,0.00568,88216.0,88207.0,0.01133696]
[1766294318426,0.00568,88216.0,88206.0,0.24713709]
[1766294318626,0.00568,88216.0,88207.0,0.01133696]
[1766294321265,0.00568,88216.0,88206.0,0.24713709]
[1766294321466,0.00568,88216.0,88207.0,0.01133696]
[1766294326961,0.00568,88216.0,88203.0,0.00568]
[1766294326962,0.000549,88207.0,88203.0,0.00568]
[1766294327354,0.00055,88203.0,88195.0,0.01701851]
[1766294327561,0.00055,88203.0,88195.0,0.00568]
[1766294327767,0.00568,88206.0,88195.0,0.00568]
[1766294327969,0.11457,88204.0,88195.0,0.00568]
[1766294328170,0.11342,88203.0,88195.0,0.01701851]
[1766294328774,0.1146349,88204.0,88195.0,0.01701851]
[1766294330141,0.1146349,88204.0,88196.0,0.01133838]
[1766294330372,6.49e-05,88204.0,88195.0,0.25210851]
[1766294330586,6.49e-05,88204.0,88196.0,0.01133838]
[1766294332215,6.49e-05,88204.0,88198.0,0.01133812]
[1766294332663,6.49e-05,88204.0,88197.0,0.01133825]
[1766294332921,6.49e-05,88204.0,88198.0,0.01133812]
[1766294333872,6.49e-05,88204.0,88197.0,0.01133825]
[1766294334854,6.49e-05,88204.0,88196.0,0.01133838]
[1766294335230,6.49e-05,88204.0,88196.0,0.13165838]
[1766294335422,6.49e-05,88204.0,88197.0,0.01133825]
[1766294335606,6.49e-05,88204.0,88196.0,0.13165838]
[1766294336053,6.49e-05,88204.0,88196.0,0.24315838]
[1766294336205,6.49e-05,88204.0,88197.0,0.01133825]
[1766294337054,6.49e-05,88204.0,88196.0,0.23509]
[1766294337378,6.49e-05,88204.0,88196.0,0.24642838]
[1766294337937,6.49e-05,88204.0,88196.0,0.23509]
[1766294338139,6.49e-05,88204.0,88196.0,0.234541]
[1766294338356,6.49e-05,88204.0,88196.0,0.119771]
[1766294339438,6.49e-05,88204.0,88196.0,0.13110938]
[1766294340371,6.49e-05,88204.0,88197.0,0.01133825]
[1766294340569,6.49e-05,88204.0,88196.0,0.13110938]
[1766294341003,6.49e-05,88204.0,88197.0,0.01133825]
[1766294341323,6.49e-05,88204.0,88196.0,0.13110938]
[1766294341733,6.49e-05,88204.0,88196.0,0.119771]
[1766294344820,6.49e-05,88204.0,88196.0,0.13110938]
[1766294346045,6.49e-05,88204.0,88197.0,0.01133825]
[1766294346414,6.49e-05,88204.0,88196.0,0.13110938]
[1766294346682,6.49e-05,88204.0,88196.0,0.119771]
[1766294347287,6.49e-05,88204.0,88196.0,0.13110938]
[1766294347643,6.49e-05,88204.0,88196.0,0.119771]
[1766294348070,6.49e-05,88204.0,88190.0,0.11621]
[1766294348071,0.01188838,88196.0,88190.0,0.11621]
[1766294348296,0.01188838,88196.0,88189.0,0.00568]
[1766294348297,0.00055,88196.0,88189.0,0.00568]
[1766294348446,0.01133876,88193.0,88189.0,0.00568]
[1766294348654,0.01133876,88193.0,88182.0,0.0001]
[1766294348655,0.23902,88190.0,88182.0,0.0001]
[1766294348882,0.116,88186.0,88178.0,0.00578]
[1766294349219,0.0001,88182.0,88178.0,0.00578]
[1766294349421,0.0001,88182.0,88179.0,0.03407393]
[1766294349566,0.23902,88186.0,88178.0,0.00578]
[1766294352268,0.116,88186.0,88178.0,0.00578]
[1766294353051,0.116,88184.0,88178.0,0.0001]
[1766294353364,0.23902,88183.0,88178.0,0.0001]
[1766294354568,0.01133992,88184.0,88174.0,0.0001]
[1766294354800,0.12302,88180.0,88171.0,0.00568]
[1766294354986,0.23902,88179.0,88171.0,0.00568]
[1766294355557,0.116,88179.0,88169.0,0.11621]
[1766294355769,0.12302,88178.0,88169.0,0.31724292]
[1766294357822,0.12302,88178.0,88168.0,0.00568]
[1766294358031,0.23902,88178.0,88168.0,0.32292292]
[1766294358902,0.23902,88178.0,88168.0,0.00568]
[1766294360575,0.23902,88180.0,88168.0,0.00568]
[1766294360790,0.12302,88174.0,88165.0,0.0004]
[1766294361124,0.23902,88174.0,88165.0,0.0004]
[1766294362013,0.23902,88174.0,88165.0,0.00075898]
[1766294367500,0.00568,88176.0,88174.0,0.000749]
[1766294367705,0.00568,88176.0,88169.0,0.23598]
[1766294368561,0.00112658,88176.0,88169.0,0.23598]
[1766294369001,0.00112658,88176.0,88165.0,0.00075898]
[1766294369431,0.01246753,88176.0,88165.0,0.00075898]
[1766294369630,0.00112658,88176.0,88165.0,0.00075898]
[1766294369849,0.09394,88174.0,88165.0,0.00075898]
[1766294373371,0.09480675,88174.0,88165.0,0.00075898]
[1766294379532,0.09480675,88174.0,88166.0,0.01134224]
[1766294379770,0.09480675,88174.0,88165.0,0.01210134]
[1766294380198,0.00654675,88174.0,88166.0,0.01134224]
[1766294380407,0.00654675,88174.0,88166.0,0.25118224]
[1766294380694,0.01134275,88179.0,88170.0,0.23984]
[1766294380896,0.00568,88178.0,88174.0,0.23984]
[1766294381738,0.00513,88178.0,88174.0,0.23984]
[1766294385640,0.00568,88179.0,88174.0,0.23984]
[1766294385859,0.14021,88187.0,88171.0,0.01134159]
[1766294385860,0.00568,88180.0,88176.0,0.23984]
[1766294386033,0.0340807,88186.0,88176.0,0.23984]
[1766294386338,0.00568,88185.0,88176.0,0.25118095]
[1766294386735,0.00568,88185.0,88177.0,0.01134082]
[1766294386956,0.00568,88185.0,88176.0,0.25118095]
[1766294389197,0.00568,88185.0,88176.0,0.23984]
[1766294393218,0.00568,88185.0,88176.0,0.25118095]
[1766294393420,0.00568,88185.0,88176.0,0.23984]
[1766294393579,0.00568,88185.0,88176.0,0.25118095]
[1766294393788,0.00568,88185.0,88176.0,0.23984]
[1766294401111,0.00568,88185.0,88176.0,0.25118095]
[1766294401568,0.0340807,88188.0,88180.0,0.01134044]
[1766294401725,0.00568,88188.0,88178.0,0.32873314]
[1766294401926,0.00568,88189.0,88179.0,0.23984]
[1766294402127,0.00568,88190.0,88183.0,0.23984]
[1766294402490,0.00568,88190.0,88184.0,0.11552]
[1766294402623,0.03407714,88194.0,88185.0,0.12432]
[1766294402826,0.00568,88190.0,88185.0,0.23984]
[1766294405985,0.00568,88190.0,88185.0,0.114971]
[1766294417205,0.00568,88190.0,88181.0,0.01134031]
[1766294417409,0.00568,88190.0,88183.0,0.01134005]
[1766294417616,0.00568,88190.0,88181.0,0.23887031]
[1766294417835,0.005131,88190.0,88183.0,0.11265]
[1766294418045,0.11916,88195.0,88183.0,0.12399005]
[1766294418249,0.00568,88194.0,88184.0,0.01133992]
[1766294418465,0.00568,88193.0,88184.0,0.01133992]
[1766294418676,0.00568,88192.0,88184.0,0.01133992]
[1766294418880,0.11916,88195.0,88184.0,0.01133992]
[1766294419298,0.00568,88194.0,88184.0,0.01133992]
[1766294419509,0.00568,88193.0,88184.0,0.01133992]
[1766294419684,0.11916,88195.0,88183.0,0.23887005]
[1766294420129,0.00568,88194.0,88183.0,0.23887005]
[1766294420332,0.00568,88193.0,88183.0,0.23887005]
[1766294420535,0.00568,88192.0,88183.0,0.23887005]
[1766294420742,0.11916,88195.0,88183.0,0.23887005]
[1766294420955,0.00568,88191.0,88183.0,0.23887005]
[1766294421160,0.00568,88194.0,88183.0,0.01134005]
[1766294421341,0.00568,88193.0,88185.0,0.11265]
[1766294421552,0.11916,88195.0,88185.0,0.11265]
[1766294421936,0.00568,88194.0,88185.0,0.11265]
[1766294422138,0.00568,88193.0,88185.0,0.11265]
[1766294422354,0.00568,88192.0,88185.0,0.11265]
[1766294422567,0.11916,88195.0,88185.0,0.11265]
[1766294422779,0.00568,88191.0,88185.0,0.11265]
[1766294429041,0.03407714,88199.0,88186.0,0.01133966]
[1766294429216,0.00568,88198.0,88183.0,0.01134005]
[1766294429521,0.00568,88198.0,88184.0,0.01133992]
[1766294429696,0.00568,88198.0,88185.0,0.23755]
[1766294429959,0.00568,88198.0,88186.0,0.11517]
[1766294431469,0.0244876,88201.0,88190.0,0.11517]
[1766294431665,0.0244876,88201.0,88188.0,0.32865408]
[1766294431666,0.00568,88201.0,88195.0,0.11517]
[1766294431893,0.00568,88201.0,88195.0,0.23755]
[1766294432840,0.00572464,88201.0,88195.0,0.23755]
[1766294434791,0.00572464,88201.0,88195.0,0.24888851]
[1766294434997,0.00572464,88201.0,88195.0,0.23755]
[1766294439308,0.00572464,88201.0,88195.0,0.237001]
[1766294442214,4.464e-05,88201.0,88195.0,0.237001]
[1766294444777,4.464e-05,88201.0,88196.0,0.01133838]
[1766294444957,4.464e-05,88201.0,88197.0,0.01133825]
[1766294445202,4.64e-06,88202.0,88196.0,0.01133838]
[1766294445383,4.64e-06,88202.0,88198.0,0.13246812]
[1766294445593,4.64e-06,88202.0,88199.0,0.1197]
[1766294445998,0.03407346,88209.0,88198.0,0.13246812]
[1766294446211,0.00568,88208.0,88198.0,0.12113]
[1766294448232,0.13113619,88213.0,88198.0,0.12113]
[1766294448233,0.01133504,88222.0,88208.0,0.000549]
[1766294448443,0.12548,88221.0,88205.0,0.05668612]
[1766294448645,0.03406982,88219.0,88208.0,0.01133684]
[1766294448862,0.00568,88221.0,88206.0,0.01133709]
[1766294449038,0.00568,88221.0,88209.0,0.24083]
[1766294449463,0.00568,88221.0,88206.0,0.06802254]
[1766294449464,0.00568,88221.0,88207.0,0.24083]
[1766294449747,0.00568,88221.0,88208.0,0.24083]
[1766294449951,0.00568,88221.0,88207.0,0.01133696]
[1766294450218,0.00568,88221.0,88209.0,0.1197]
[1766294450611,0.00568,88221.0,88209.0,0.24083]
[1766294450793,0.00568,88221.0,88210.0,0.24083]
[1766294455835,0.00568,88221.0,88210.0,0.25216658]
[1766294456305,0.00568,88221.0,88210.0,0.24083]
[1766294456515,0.00568,88221.0,88210.0,0.25216658]
[1766294456715,0.00568,88221.0,88210.0,0.24083]
[1766294456916,0.00568,88221.0,88211.0,0.12113]
[1766294457547,0.04540133,88226.0,88211.0,0.12113]
[1766294457737,8.13e-05,88226.0,88217.0,0.12113]
[1766294457958,8.13e-05,88226.0,88219.0,0.12113]
[1766294458288,8.13e-05,88226.0,88219.0,0.13246542]
[1766294458616,8.13e-05,88226.0,88219.0,0.12113]
[1766294459265,0.03406421,88232.0,88226.0,0.01133452]
[1766294459448,0.00568,88233.0,88232.0,0.000468]
[1766294459608,0.00568,88234.0,88232.0,0.000468]
[1766294460072,0.00568,88234.0,88228.0,0.01133427]
[1766294460383,0.00568,88234.0,88227.0,0.24083]
[1766294460747,0.00568,88234.0,88228.0,0.01133427]
[1766294461361,0.00568,88234.0,88227.0,0.25216439]
[1766294461563,0.00568,88234.0,88229.0,0.01133414]
[1766294462389,0.00568,88234.0,88228.0,0.01133427]
[1766294462390,0.00568,88234.0,88230.0,0.01133401]
[1766294462597,0.00568,88234.0,88227.0,0.30883615]
[1766294462598,0.00568,88234.0,88227.0,0.25216439]
[1766294463012,0.00568,88234.0,88227.0,0.24083]
[1766294463630,0.00568,88234.0,88227.0,0.12113]
[1766294463843,0.00568,88234.0,88227.0,0.13246439]
[1766294465955,0.00568,88234.0,88227.0,0.12113]
[1766294466165,0.00568,88234.0,88227.0,0.13246439]
[1766294466867,0.00568,88234.0,88229.0,0.01133414]
[1766294467079,0.00568,88234.0,88227.0,0.13246439]
[1766294467285,0.00568,88234.0,88227.0,0.12113]
[1766294467902,0.00568,88234.0,88228.0,0.01133427]
[1766294468123,0.00568,88234.0,88227.0,0.13246439]
[1766294468690,0.00568,88234.0,88227.0,0.12113]
[1766294470437,0.00454661,88234.0,88227.0,0.12113]
[1766294472622,0.00127661,88234.0,88227.0,0.12113]
[1766294473526,0.00127661,88234.0,88227.0,0.13246439]
[1766294473724,0.00127661,88234.0,88227.0,0.12113]
[1766294474825,0.00127661,88234.0,88227.0,0.13246439]
[1766294475030,0.00127661,88234.0,88227.0,0.12113]
[1766294475717,0.00127661,88234.0,88228.0,0.01133427]
[1766294476163,0.00127661,88234.0,88227.0,0.13246439]
[1766294477367,0.00127661,88234.0,88227.0,0.12113]
[1766294478834,0.00127661,88234.0,88227.0,0.13246439]
[1766294479471,0.00127661,88234.0,88227.0,0.12113]
[1766294480190,0.00127661,88234.0,88227.0,0.13246439]
[1766294480648,0.00127661,88234.0,88227.0,0.12113]
[1766294481165,0.00127661,88234.0,88227.0,0.13246439]
[1766294482776,0.00127661,88234.0,88226.0,0.01133452]
[1766294483926,0.00127661,88234.0,88227.0,0.01133439]
[1766294484926,0.00127661,88234.0,88224.0,0.01133478]
[1766294484927,0.11898,88233.0,88224.0,0.01133478]
[1766294485387,0.00127661,88234.0,88222.0,0.01133504]
[1766294485582,0.23932,88233.0,88221.0,0.01701516]
[1766294485740,0.23932,88232.0,88222.0,0.01133504]
[1766294486353,0.23932,88232.0,88221.0,0.01701516]
[1766294487163,0.23932,88232.0,88223.0,0.01133491]
[1766294487549,0.23932,88232.0,88222.0,0.01133504]
[1766294487679,0.23932,88232.0,88223.0,0.01133491]
[1766294488297,0.23932,88232.0,88222.0,0.01133504]
[1766294489098,0.11898,88232.0,88223.0,0.01133491]
[1766294489293,0.11898,88232.0,88224.0,0.01133478]
[1766294489642,0.11898,88232.0,88223.0,0.01133491]
[1766294490855,0.11898,88232.0,88222.0,0.01133504]
[1766294491042,0.11898,88232.0,88223.0,0.01133491]
[1766294492071,0.11898,88232.0,88222.0,0.01133504]
[1766294493068,0.11898,88232.0,88223.0,0.01133491]
[1766294495293,0.11898,88232.0,88222.0,0.01133504]
[1766294495498,0.11898,88232.0,88223.0,0.01133491]
[1766294495956,0.11898,88232.0,88224.0,0.01133478]
[1766294496408,0.11898,88232.0,88221.0,0.1869107]
[1766294496409,0.11898,88232.0,88222.0,0.01133504]
[1766294496619,0.11898,88232.0,88223.0,0.01133491]
[1766294497291,0.11898,88232.0,88222.0,0.01133504]
[1766294497496,0.11898,88232.0,88223.0,0.01133491]
[1766294498554,0.11898,88232.0,88222.0,0.01133504]
[1766294498885,0.11898,88232.0,88223.0,0.01133491]
[1766294499382,0.11898,88232.0,88224.0,0.01133478]
[1766294499549,0.11898,88232.0,88223.0,0.01133491]
[1766294500805,0.11898,88232.0,88224.0,0.01133478]
[1766294502984,0.11898,88232.0,88223.0,0.01133491]
[1766294503855,0.11898,88232.0,88225.0,0.01133465]
[1766294507162,0.11898,88232.0,88222.0,0.01133504]
[1766294507364,0.11898,88232.0,88225.0,0.01133465]
[1766294507597,0.11898,88232.0,88224.0,0.01133478]
[1766294507804,0.11898,88232.0,88225.0,0.01133465]
[1766294508374,0.11898,88232.0,88226.0,0.01133452]
[1766294508815,0.11898,88232.0,88225.0,0.01133465]
[1766294509012,0.11898,88232.0,88224.0,0.01133478]
[1766294509343,0.11898,88232.0,88225.0,0.01133465]
[1766294509472,0.11898,88232.0,88226.0,0.01133452]
[1766294510320,0.11898,88232.0,88225.0,0.01133465]
[1766294511237,0.11898,88232.0,88226.0,0.01133452]
[1766294511436,0.11898,88232.0,88225.0,0.01133465]
[1766294512873,0.11898,88232.0,88226.0,0.01133452]
[1766294513214,0.11898,88232.0,88224.0,0.01133478]
[1766294513414,0.11898,88232.0,88225.0,0.01133465]
[1766294514399,0.11898,88232.0,88224.0,0.01133478]
[1766294514725,0.11898,88232.0,88225.0,0.01133465]
[1766294515318,0.11898,88232.0,88226.0,0.01133452]
[1766294515526,0.11898,88232.0,88225.0,0.01133465]
[1766294518448,0.11898,88232.0,88224.0,0.01133478]
[1766294518647,0.11898,88232.0,88225.0,0.01133465]
[1766294519862,0.11898,88232.0,88224.0,0.01133478]
[1766294520376,0.11898,88232.0,88225.0,0.01133465]
[1766294520539,0.11898,88232.0,88224.0,0.01133478]
[1766294520762,0.11898,88232.0,88226.0,0.01133452]
[1766294522081,0.11898,88232.0,88221.0,0.01701516]
[1766294522297,0.12101,88224.0,88217.0,0.00568]
[1766294522510,0.12101,88222.0,88217.0,1.3e-06]
[1766294522712,0.12101,88218.0,88212.0,0.00568]
[1766294522890,0.01133491,88223.0,88205.0,0.01133722]
[1766294522891,0.12101,88216.0,88205.0,0.01133722]
[1766294523107,0.01133504,88222.0,88206.0,0.00568]
[1766294523108,0.24214,88215.0,88206.0,0.00568]
[1766294523461,0.24214,88215.0,88206.0,0.01701709]
[1766294523644,0.24214,88215.0,88207.0,0.01133696]
[1766294524126,0.24214,88215.0,88208.0,0.01133684]
[1766294524327,0.12113,88215.0,88208.0,0.01133684]
[1766294524459,0.12113,88215.0,88211.0,0.01133645]
[1766294524854,0.12101,88219.0,88215.0,0.000549]
[1766294525465,0.23957,88219.0,88209.0,0.01133671]
[1766294527420,0.23957,88219.0,88210.0,0.01133658]
[1766294527617,0.23957,88219.0,88209.0,0.01133671]
[1766294530233,0.23957,88219.0,88210.0,0.01133658]
[1766294530872,0.23957,88219.0,88211.0,0.01133645]
[1766294531089,0.23957,88219.0,88209.0,0.01133671]
[1766294531282,0.23957,88219.0,88210.0,0.01133658]
[1766294531628,0.23957,88219.0,88211.0,0.01133645]
[1766294532285,0.23957,88219.0,88210.0,0.01133658]
[1766294532674,0.23957,88219.0,88209.0,0.01133671]
[1766294533179,0.23957,88219.0,88210.0,0.01133658]
[1766294533951,0.11856,88219.0,88211.0,0.01133645]
[1766294534384,0.11856,88219.0,88212.0,0.01133632]
[1766294534888,0.19566188,88230.0,88219.0,0.000549]
[1766294535081,0.00568,88229.0,88217.0,0.12424568]
[1766294535652,0.12424,88229.0,88217.0,0.11291]
[1766294535918,0.12793,88229.0,88217.0,0.11291]
[1766294536170,0.11856,88228.0,88217.0,0.12424568]
[1766294536373,0.11856,88228.0,88217.0,0.11291]
[1766294536503,0.11856,88228.0,88217.0,0.12424568]
[1766294536705,0.11856,88228.0,88218.0,0.01133555]
[1766294536905,0.11856,88228.0,88219.0,0.01133542]
[1766294537171,0.11856,88228.0,88217.0,0.12424568]
[1766294537385,0.11856,88228.0,88218.0,0.01133555]
[1766294537528,0.11856,88228.0,88219.0,0.01133542]
[1766294537934,0.11856,88228.0,88218.0,0.01133555]
[1766294539026,0.11856,88228.0,88217.0,0.12424568]
[1766294539243,0.11856,88228.0,88218.0,0.01133555]
[1766294539791,0.11856,88228.0,88217.0,0.12424568]
[1766294541118,0.11856,88228.0,88218.0,0.01133555]
[1766294541327,0.00568,88228.0,88222.0,0.22606]
[1766294541866,0.00568,88228.0,88222.0,0.23739504]
[1766294542141,0.00568,88228.0,88223.0,0.01133491]
[1766294543108,0.00568,88228.0,88224.0,0.01133478]
[1766294543424,0.00568,88228.0,88225.0,0.01123465]
[1766294544633,0.00568,88228.0,88225.0,0.00797465]
[1766294547159,0.00010748,88230.0,88225.0,0.00797465]
[1766294547160,0.02449487,88235.0,88226.0,0.11736]
[1766294547402,0.00568,88235.0,88230.0,0.01133401]
[1766294547616,0.005131,88235.0,88232.0,0.01133375]
[1766294547814,0.02449456,88242.0,88235.0,0.01133337]
[1766294548031,0.24611,88256.0,88241.0,0.0113326]
[1766294548264,0.24611,88256.0,88245.0,0.01133208]
[1766294548463,0.24611,88256.0,88246.0,0.01133195]
[1766294548676,0.00568,88257.0,88250.0,0.12803144]
[1766294548890,0.00568,88257.0,88250.0,0.1167]
[1766294549338,0.00568,88257.0,88249.0,0.11736]
[1766294550130,0.00568,88257.0,88249.0,0.12869157]
[1766294550355,0.00568,88257.0,88247.0,0.23406]
[1766294550556,0.00568,88257.0,88247.0,0.24539182]
[1766294551166,0.00568,88257.0,88248.0,0.0113317]
[1766294551376,0.00568,88257.0,88247.0,0.23406]
[1766294551860,0.00568,88257.0,88247.0,0.24539182]
[1766294552035,0.00568,88257.0,88247.0,0.23406]
[1766294552236,0.00568,88257.0,88247.0,0.24539182]
[1766294552445,0.00568,88257.0,88247.0,0.23406]
[1766294553248,0.00568,88257.0,88247.0,0.11736]
[1766294559246,0.00568,88257.0,88247.0,0.23345]
[1766294559442,0.00568,88257.0,88247.0,0.24478182]
[1766294560112,0.00568,88257.0,88247.0,0.23345]
[1766294561354,0.00568,88257.0,88248.0,0.00568]
[1766294562965,0.00568,88257.0,88248.0,0.0170117]
[1766294563167,0.00568,88257.0,88248.0,0.00568]
[1766294569077,0.00568,88257.0,88248.0,0.005131]
[1766294570967,0.00241,88257.0,88248.0,0.005131]
[1766294572508,0.01374054,88257.0,88248.0,0.005131]
[1766294572941,0.00241,88257.0,88248.0,0.005131]
[1766294576200,0.01374054,88257.0,88248.0,0.005131]
[1766294576626,0.01133067,88256.0,88248.0,0.005131]
[1766294576833,0.01374054,88257.0,88248.0,0.005131]
[1766294577889,0.01133067,88256.0,88248.0,0.005131]
[1766294578400,0.00241,88257.0,88248.0,0.005131]
[1766294579177,0.01374054,88257.0,88248.0,0.005131]
[1766294580183,0.00241,88257.0,88248.0,0.005131]
[1766294588925,0.13119054,88257.0,88248.0,0.005131]
[1766294589155,0.11986,88257.0,88248.0,0.005131]
[1766294596424,0.01133067,88256.0,88248.0,0.00568]
[1766294596634,0.11745,88252.0,88248.0,0.00568]
[1766294596877,0.11464,88250.0,88248.0,0.00568]
[1766294597047,0.23209,88249.0,88248.0,0.00568]
[1766294597275,0.23209,88249.0,88244.0,0.00568]
[1766294598261,0.11745,88249.0,88244.0,0.00568]
[1766294599411,0.00568,88255.0,88249.0,0.000549]
[1766294599778,0.00568,88255.0,88245.0,0.11461]
[1766294600365,0.12313,88255.0,88245.0,0.11461]
[1766294600784,0.01133093,88254.0,88245.0,0.11406]
[1766294601190,0.01133105,88253.0,88245.0,0.11406]
[1766294601675,0.01133157,88249.0,88244.0,0.00568]
[1766294601878,0.01133157,88249.0,88236.0,0.0406357]
[1766294601879,0.12878182,88247.0,88236.0,0.0406357]
[1766294602084,0.12878182,88247.0,88239.0,3.97e-06]
[1766294602085,0.11745,88244.0,88239.0,3.97e-06]
[1766294602298,0.01133375,88232.0,88223.0,0.06118757]
[1766294602508,0.01133427,88228.0,88222.0,0.00568]
[1766294602681,0.01133427,88228.0,88210.0,0.10654757]
[1766294602682,0.20783,88225.0,88210.0,0.31689334]
[1766294602898,0.20783,88225.0,88213.0,0.01133619]
[1766294603102,0.20783,88225.0,88215.0,0.03406019]
[1766294603252,0.20783,88225.0,88216.0,0.00568]
[1766294603253,0.207281,88225.0,88216.0,0.00568]
[1766294604118,0.09319,88225.0,88216.0,0.01701581]
[1766294604294,0.09319,88225.0,88216.0,0.00568]
[1766294604469,0.08761,88231.0,88217.0,0.01133568]
[1766294604675,0.08771748,88231.0,88217.0,0.01133568]
[1766294605256,0.09339748,88231.0,88217.0,0.01133568]
[1766294605685,0.09339748,88231.0,88218.0,0.01133555]
[1766294605882,0.09339748,88231.0,88219.0,0.01133542]
[1766294605883,0.09253074,88231.0,88219.0,0.01133542]
[1766294606214,0.00578748,88231.0,88221.0,0.2382]
[1766294607468,0.00578748,88231.0,88221.0,0.24953516]
[1766294607830,0.00523748,88231.0,88222.0,0.01133504]
[1766294611020,0.00523748,88231.0,88223.0,0.01133491]
[1766294611402,0.00523748,88231.0,88222.0,0.01133504]
[1766294612033,0.00523748,88231.0,88225.0,0.01133465]
[1766294612358,0.00523748,88231.0,88226.0,0.01133452]
[1766294612792,0.00523748,88231.0,88225.0,0.01133465]
[1766294614077,0.00523748,88231.0,88224.0,0.01133478]
[1766294614355,0.00523748,88231.0,88225.0,0.01133465]
[1766294614790,0.00523748,88231.0,88224.0,0.01133478]
[1766294615238,0.00568,88233.0,88225.0,0.01133465]
[1766294615552,0.00568,88235.0,88225.0,0.01133465]
[1766294615742,0.00568,88235.0,88226.0,0.23862]
[1766294616324,0.00568,88235.0,88226.0,0.24995452]
[1766294616527,0.00568,88235.0,88226.0,0.23862]
[1766294616688,0.00568,88235.0,88227.0,0.12437]
[1766294617703,0.00568,88235.0,88227.0,0.23862]
[1766294621212,0.00568,88235.0,88227.0,0.24995439]
[1766294622176,0.00568,88235.0,88227.0,0.23862]
[1766294622536,0.00568,88235.0,88227.0,0.24995439]
[1766294623132,0.00568,88235.0,88227.0,0.23862]
[1766294624888,0.00568,88235.0,88227.0,0.24995439]
[1766294625091,0.00568,88235.0,88228.0,0.01133427]
[1766294625295,0.00568,88235.0,88227.0,0.24995439]
[1766294626231,0.00568,88235.0,88227.0,0.23862]
[1766294626434,0.00568,88235.0,88227.0,0.24995439]
[1766294627616,0.00568,88235.0,88228.0,0.01133427]
[1766294628041,0.00568,88235.0,88229.0,0.23862]
[1766294629100,0.00568,88235.0,88229.0,0.24995414]
[1766294629901,0.00568,88235.0,88229.0,0.23862]
[1766294638009,0.00568,88235.0,88229.0,0.24995414]
[1766294638436,0.00568,88235.0,88229.0,0.23862]
[1766294640440,0.00568,88235.0,88229.0,0.238071]
[1766294640875,0.00568,88235.0,88229.0,0.113701]
[1766294641077,0.00568,88235.0,88226.0,0.00568]
[1766294641238,0.02447697,88241.0,88226.0,0.01701452]
[1766294641441,0.21634,88239.0,88226.0,0.00568]
[1766294641643,0.02447697,88238.0,88226.0,0.01701452]
[1766294641979,0.02447697,88238.0,88226.0,0.00568]
[1766294642175,0.02447697,88238.0,88226.0,0.01701452]
[1766294642360,0.02447697,88238.0,88228.0,0.01133427]
[1766294642961,0.02447697,88238.0,88231.0,0.01133388]
[1766294643164,0.0002,88243.0,88231.0,0.11425]
[1766294643364,0.0002,88243.0,88234.0,0.23862]
[1766294643585,0.0002,88243.0,88233.0,0.01133362]
[1766294643789,0.0002,88243.0,88234.0,0.12558349]
[1766294643987,0.0002,88243.0,88235.0,0.01133337]
[1766294644330,0.0002,88243.0,88236.0,0.01133324]
[1766294644535,0.0002,88243.0,88236.0,0.24995324]
[1766294645417,0.0002,88243.0,88237.0,0.01133311]
[1766294645768,0.0002,88243.0,88236.0,0.24995324]
[1766294646211,0.0002,88243.0,88236.0,0.11425]
[1766294646749,0.0002,88243.0,88232.0,0.01701375]
[1766294646979,0.0002,88243.0,88233.0,0.01133362]
[1766294647181,0.0002,88243.0,88232.0,0.01701375]
[1766294647341,0.0002,88243.0,88233.0,0.01133362]
[1766294647738,0.0002,88243.0,88232.0,0.01701375]
[1766294648154,0.0002,88243.0,88234.0,0.01133349]
[1766294648366,0.0002,88243.0,88235.0,0.01133337]
[1766294648558,0.0001,88239.0,88233.0,0.01133362]
[1766294649338,0.0001,88239.0,88234.0,0.01133349]
[1766294650205,0.0001,88239.0,88235.0,0.01133337]
[1766294651422,0.0001,88239.0,88236.0,0.01133324]
[1766294652429,0.0002,88243.0,88236.0,0.01133324]
[1766294653036,0.0002,88243.0,88235.0,0.01133337]